[Event "27th OIBM 2024"]
[Site "Gmund am Tegernsee"]
[Date "2024.10.27"]
[Round "2.30"]
[White "Priyanka Nutakki"]
[Black "Tonndorf, Matthias"]
[Result "1-0"]
[ECO "D10"]
[WhiteElo "2289"]
[BlackElo "2129"]
[Annotator "RC"]
[PlyCount "81"]
[EventDate "2024.09.16"]
[EventType "swiss"]
[EventCountry "GER"]
[SourceTitle "playchess.com"]
[Source "ChessBase"]
[SourceQuality "1"]
[TimeControl "40/5400+30:1800+30"]

1. d4 {[%emt 0:00:10]} Nf6 {[%emt 0:00:06]} 2. Bf4 {[%emt 0:00:11]} d5 {[%emt 0:00:43]} 3. e3 {[%emt 0:00:13]} Bf5 {[%emt 0:02:13]} 4. c4 {[%emt 0:03:15]} c6 {[%emt 0:02:15]} 5. cxd5 {[%emt 0:06:58]} Nxd5 {[%emt 0:01:30]} 6. Bxb8 {[%emt 0:03:08]} Rxb8 {[%emt 0:04:34]} 7. Nd2 {[%emt 0:02:22]} Bg6 {[%emt 0:02:01]} 8. a3 {[%emt 0:00:58]} e6 {[%emt 0:00:54]} 9. Ngf3 {[%emt 0:00:44]} Be7 {[%emt 0:01:10]} 10. Be2 {[%emt 0:12:21]} O-O {[%emt 0:09:07]} 11. O-O {[%emt 0:00:22]} c5 {[%emt 0:01:36]} 12. dxc5 {[%emt 0:01:15]} Bxc5 {[%emt 0:01:20]} 13. Rc1 {[%emt 0:00:16]} Qe7 {[%emt 0:06:55]} 14. b4 {[%emt 0:02:14]} Bxe3 {[%emt 0:05:19]} 15. fxe3 {[%emt 0:00:11]} Nxe3 {[%emt 0:00:05]} 16. Qa4 {[%emt 0:03:26]} Nxf1 {[%emt 0:00:37]} 17. Bxf1 {[%emt 0:04:09]} a6 {[%emt 0:01:18]} 18. Qa5 {[%emt 0:04:34]} Rbc8 {[%emt 0:01:25]} 19. Rc4 {[%emt 0:01:51]} Rxc4 {[%emt 0:04:57]} 20. Bxc4 {[%emt 0:00:20]} Rc8 {[%emt 0:04:15]} 21. Qb6 {[%emt 0:05:11]} Qc7 {[%emt 0:02:53]} 22. Qxc7 {[%emt 0:00:12]} Rxc7 {[%emt 0:00:14]} 23. a4 {[%emt 0:00:04]} Bc2 {[%emt 0:09:33]} 24. a5 {[%emt 0:01:05]} Kf8 {[%emt 0:06:06]} 25. Kf2 {[%emt 0:00:59]} Ke7 {[%emt 0:00:31]} 26. Ke3 {[%emt 0:00:33]} Ba4 {[%emt 0:00:45]} 27. g3 {[%emt 0:04:48]} f6 {[%emt 0:02:05]} 28. Nd4 {[%emt 0:01:22]} Bd7 {[%emt 0:00:44]} 29. N4b3 {[%emt 0:00:33]} f5 {[%emt 0:03:29]} 30. Nc5 {[%emt 0:01:34]} Kf6 {[%emt 0:03:52]} 31. Bb3 {[%emt 0:06:25]} g5 {[%emt 0:04:35]} 32. Nc4 {[%emt 0:01:46]} e5 {[%emt 0:01:28]} 33. Nb6 {[%emt 0:00:23]} f4+ {[%emt 0:01:10]} 34. Kf2 {[%emt 0:02:57]} Bc6 {[%emt 0:00:41]} 35. Nd5+ {[%emt 0:00:23]} Bxd5 {[%emt 0:00:06]} 36. Bxd5 {[%emt 0:00:01]} h5 {[%emt 0:04:45]} 37. Bxb7 {[%emt 0:00:21]} g4 {[%emt 0:00:37]} 38. Bxa6 {[%emt 0:01:07]} h4 {[%emt 0:00:48]} 39. Bb7 {[%emt 0:03:01]} hxg3+ {[%emt 0:03:10]} 40. hxg3 {[%emt 0:00:02]} Rh7 {[%emt 0:00:10]} 41. Kg1 {[%emt 0:31:42]} 1-0

[Event "27th OIBM 2024"]
[Site "Gmund am Tegernsee"]
[Date "2024.10.27"]
[Round "2.31"]
[White "Billio, Atto"]
[Black "Schuster, Karsten"]
[Result "1/2-1/2"]
[ECO "D78"]
[WhiteElo "2040"]
[BlackElo "2283"]
[Annotator "RC"]
[PlyCount "58"]
[EventDate "2024.09.16"]
[EventType "swiss"]
[EventCountry "GER"]
[SourceTitle "playchess.com"]
[Source "ChessBase"]
[SourceQuality "1"]
[TimeControl "40/5400+30:1800+30"]

1. c4 {[%emt 1:31:00]} c6 {[%emt 0:00:04]} 2. g3 {[%emt 0:00:00]} d5 {[%emt 0:00:05]} 3. Nf3 {[%emt 0:00:00]} Nf6 {[%emt 0:00:22]} 4. Bg2 {[%emt 0:00:00]} g6 {[%emt 0:02:21]} 5. b3 {[%emt 0:00:00]} Bg7 {[%emt 0:00:57]} 6. Bb2 {[%emt 0:00:00]} O-O {[%emt 0:00:47]} 7. O-O {[%emt 0:00:00]} Bg4 {[%emt 0:07:42]} 8. d4 {[%emt 0:00:00]} Nbd7 {[%emt 0:10:37]} 9. cxd5 {[%emt 0:00:00]} Bxf3 {[%emt 0:10:48]} 10. Bxf3 {[%emt 0:00:00]} cxd5 {[%emt 0:00:04]} 11. Nc3 {[%emt 0:00:00]} e6 {[%emt 0:04:59]} 12. Qd2 {[%emt 0:00:00]} a6 {[%emt 0:03:28]} 13. Rfd1 {[%emt 0:00:00]} b5 {[%emt 0:02:25]} 14. Rac1 {[%emt 0:00:00]} Rc8 {[%emt 0:05:03]} 15. Ba3 {[%emt 0:00:00]} Re8 {[%emt 0:00:16]} 16. Nb1 {[%emt 0:00:00]} Qb6 {[%emt 0:02:06]} 17. Bb4 {[%emt 0:00:00]} Bf8 {[%emt 0:06:16]} 18. Na3 {[%emt 0:00:00]} Nb8 {[%emt 0:07:20]} 19. e3 {[%emt 0:00:00]} Rc6 {[%emt 0:01:13]} 20. Rxc6 {[%emt 0:00:00]} Nxc6 {[%emt 0:00:27]} 21. Bxf8 {[%emt 0:00:00]} Rxf8 {[%emt 0:00:37]} 22. Rc1 {[%emt 0:00:00]} Rc8 {[%emt 0:04:19]} 23. Nc2 {[%emt 0:00:00]} Qa5 {[%emt 0:14:29]} 24. Qxa5 {[%emt 0:00:00]} Nxa5 {[%emt 0:00:04]} 25. Kf1 {[%emt 0:00:00]} Nb7 {[%emt 0:00:42]} 26. Ke1 {[%emt 0:00:00]} Nd6 {[%emt 0:00:17]} 27. Kd1 {[%emt 0:00:03]} Nfe4 {[%emt 0:02:38]} 28. Bxe4 {[%emt 0:00:09]} Nxe4 {[%emt 0:00:05]} 29. f3 {[%emt 0:00:04]} Nd6 {[%emt 0:03:02]} 1/2-1/2

[Event "27th OIBM 2024"]
[Site "Gmund am Tegernsee"]
[Date "2024.10.27"]
[Round "2.32"]
[White "Bohnhoff, Peter"]
[Black "Giemsa, Stephan"]
[Result "1/2-1/2"]
[ECO "D32"]
[WhiteElo "2031"]
[BlackElo "2275"]
[Annotator "RC"]
[PlyCount "38"]
[EventDate "2024.09.16"]
[EventType "swiss"]
[EventCountry "GER"]
[SourceTitle "playchess.com"]
[Source "ChessBase"]
[SourceQuality "1"]
[TimeControl "40/5400+30:1800+30"]

1. Nf3 {[%emt 0:00:04]} d5 {[%emt 0:02:17]} 2. e3 {[%emt 0:00:24]} Nf6 {[%emt 0:00:41]} 3. c4 {[%emt 0:00:20]} e6 {[%emt 0:01:01]} 4. Nc3 {[%emt 0:00:34]} c5 {[%emt 0:05:38]} 5. cxd5 {[%emt 0:00:55]} exd5 {[%emt 0:00:05]} 6. d4 {[%emt 0:04:40]} Nc6 {[%emt 0:00:51]} 7. Bb5 {[%emt 0:00:34]} cxd4 {[%emt 0:00:55]} 8. Nxd4 {[%emt 0:00:37]} Bd7 {[%emt 0:00:12]} 9. O-O {[%emt 0:01:43]} Bd6 {[%emt 0:00:23]} 10. b3 {[%emt 0:06:23]} O-O {[%emt 0:07:29]} 11. Bb2 {[%emt 0:04:18]} Qe7 {[%emt 0:12:32]} 12. Nf3 {[%emt 0:13:24]} Be6 {[%emt 0:05:57]} 13. Ne2 {[%emt 0:03:36]} Rac8 {[%emt 0:09:11]} 14. Ned4 {[%emt 0:09:06]} Bg4 {[%emt 0:02:10]} 15. Be2 {[%emt 0:05:46]} Nxd4 {[%emt 0:19:14]} 16. Bxd4 {[%emt 0:06:12]} Ne4 {[%emt 0:01:29]} 17. Bb2 {[%emt 0:10:20]} Nc3 {[%emt 0:08:50]} 18. Bxc3 {[%emt 0:09:12]} Rxc3 {[%emt 0:00:05]} 19. Qd4 {[%emt 0:00:21]} Bxf3 {[%emt 0:11:08]} 1/2-1/2

[Event "27th OIBM 2024"]
[Site "Gmund am Tegernsee"]
[Date "2024.10.27"]
[Round "2.33"]
[White "Mitev, Valentin"]
[Black "de Francesco, Klaus"]
[Result "1-0"]
[ECO "E14"]
[WhiteElo "2274"]
[BlackElo "2126"]
[Annotator "RC"]
[PlyCount "113"]
[EventDate "2024.09.16"]
[EventType "swiss"]
[EventCountry "GER"]
[SourceTitle "playchess.com"]
[Source "ChessBase"]
[SourceQuality "1"]
[TimeControl "40/5400+30:1800+30"]

1. d4 {[%emt 0:00:06]} e6 {[%emt 0:00:18]} 2. Nf3 {[%emt 0:00:25]} Nf6 {[%emt 0:00:42]} 3. e3 {[%emt 0:00:09]} c5 {[%emt 0:00:54]} 4. Bd3 {[%emt 0:00:13]} b6 {[%emt 0:01:55]} 5. O-O {[%emt 0:00:09]} Bb7 {[%emt 0:00:32]} 6. c4 {[%emt 0:00:09]} Be7 {[%emt 0:01:32]} 7. Nc3 {[%emt 0:00:31]} d6 {[%emt 0:01:53]} 8. d5 {[%emt 0:02:19]} exd5 {[%emt 0:03:06]} 9. cxd5 {[%emt 0:00:15]} a6 {[%emt 0:00:38]} 10. e4 {[%emt 0:13:30]} b5 {[%emt 0:00:43]} 11. a4 {[%emt 0:00:57]} c4 {[%emt 0:04:18]} 12. Be2 {[%emt 0:07:04]} b4 {[%emt 0:08:35]} 13. Na2 {[%emt 0:00:05]} Nxe4 {[%emt 0:00:30]} 14. Qd4 {[%emt 0:03:23]} Nf6 {[%emt 0:01:16]} 15. Bxc4 {[%emt 0:00:51]} a5 {[%emt 0:02:25]} 16. Nh4 {[%emt 0:02:41]} O-O {[%emt 0:02:13]} 17. Nf5 {[%emt 0:02:45]} Bc8 {[%emt 0:02:18]} 18. Nxe7+ {[%emt 0:00:44]} Qxe7 {[%emt 0:00:06]} 19. Bf4 {[%emt 0:00:57]} Nh5 {[%emt 0:04:49]} 20. Rfe1 {[%emt 0:02:28]} Qd8 {[%emt 0:01:44]} 21. Bd2 {[%emt 0:16:15]} Nd7 {[%emt 0:03:02]} 22. Nc1 {[%emt 0:08:17]} Nb6 {[%emt 0:05:53]} 23. Bb3 {[%emt 0:00:39]} Ba6 {[%emt 0:02:15]} 24. Be3 {[%emt 0:07:10]} Nd7 {[%emt 0:02:11]} 25. g4 {[%emt 0:02:46]} Nhf6 {[%emt 0:00:34]} 26. g5 {[%emt 0:00:21]} Ne5 {[%emt 0:02:12]} 27. Bd1 {[%emt 0:00:26]} Nfd7 {[%emt 0:00:29]} 28. h4 {[%emt 0:07:38]} Rc8 {[%emt 0:02:25]} 29. f4 {[%emt 0:02:13]} Nc4 {[%emt 0:02:39]} 30. Bf2 {[%emt 0:01:07]} Bb7 {[%emt 0:05:22]} 31. Nb3 {[%emt 0:00:52]} Ndb6 {[%emt 0:01:02]} 32. Bf3 {[%emt 0:01:06]} Qd7 {[%emt 0:01:00]} 33. Nxa5 {[%emt 0:08:05]} Nxa5 {[%emt 0:13:18]} 34. Qxb6 {[%emt 0:00:03]} Nb3 {[%emt 0:00:38]} 35. Rad1 {[%emt 0:00:03]} Rc2 {[%emt 0:24:33]} 36. Qxb4 {[%emt 0:00:39]} Nc5 {[%emt 0:00:00]} 37. Rd2 {[%emt 0:03:47]} Rxd2 {[%emt 0:00:00]} 38. Qxd2 {[%emt 0:00:03]} Qxa4 {[%emt 0:00:00]} 39. Kg2 {[%emt 0:01:31]} Ba6 {[%emt 0:00:00]} 40. Bxc5 {[%emt 0:01:16]} dxc5 {[%emt 0:00:00]} 41. d6 {[%emt 0:30:09]} Bc8 {[%emt 0:16:27]} 42. Re7 {[%emt 0:01:24]} Bd7 {[%emt 0:02:05]} 43. b3 {[%emt 0:03:05]} Qb5 {[%emt 0:00:23]} 44. Qe2 {[%emt 0:00:18]} c4 {[%emt 0:01:55]} 45. bxc4 {[%emt 0:00:00]} Qf5 {[%emt 0:00:00]} 46. Qf2 {[%emt 0:00:00]} Qh3+ {[%emt 0:00:00]} 47. Kg1 {[%emt 0:00:00]} Rb8 {[%emt 0:00:00]} 48. Bg2 {[%emt 0:00:00]} Qg4 {[%emt 0:15:40]} 49. Kh2 {[%emt 0:00:00]} Rb3 {[%emt 0:00:00]} 50. Re3 {[%emt 0:06:36]} Rxe3 {[%emt 0:00:00]} 51. Qxe3 {[%emt 0:00:00]} Qxh4+ {[%emt 0:00:00]} 52. Kg1 {[%emt 0:00:00]} Qg4 {[%emt 0:00:00]} 53. Qf3 {[%emt 0:00:00]} Qe6 {[%emt 0:00:00]} 54. Qa8+ {[%emt 0:00:00]} Be8 {[%emt 0:00:00]} 55. Kf2 {[%emt 0:00:00]} Qd7 {[%emt 0:00:00]} 56. Bh3 {[%emt 0:00:00]} f5 {[%emt 0:00:00]} 57. Bxf5 {[%emt 0:00:00]} 1-0

[Event "27th OIBM 2024"]
[Site "Gmund am Tegernsee"]
[Date "2024.10.27"]
[Round "2.34"]
[White "Guth, Thomas"]
[Black "Tillmann, Markus"]
[Result "1-0"]
[ECO "C54"]
[WhiteElo "2261"]
[BlackElo "2120"]
[Annotator "RC"]
[PlyCount "107"]
[EventDate "2024.09.16"]
[EventType "swiss"]
[EventCountry "GER"]
[SourceTitle "playchess.com"]
[Source "ChessBase"]
[SourceQuality "1"]
[TimeControl "40/5400+30:1800+30"]

1. e4 {[%emt 0:00:02]} e5 {[%emt 0:01:00]} 2. Nf3 {[%emt 0:00:23]} Nc6 {[%emt 0:00:07]} 3. Bc4 {[%emt 0:00:31]} Bc5 {[%emt 0:00:46]} 4. O-O {[%emt 0:00:37]} Nf6 {[%emt 0:00:23]} 5. d3 {[%emt 0:00:23]} d6 {[%emt 0:01:16]} 6. c3 {[%emt 0:00:43]} Bg4 {[%emt 0:05:04]} 7. h3 {[%emt 0:01:11]} Bh5 {[%emt 0:00:56]} 8. Nbd2 {[%emt 0:00:26]} a6 {[%emt 0:00:41]} 9. b4 {[%emt 0:00:36]} Ba7 {[%emt 0:02:03]} 10. Bb3 {[%emt 0:01:41]} O-O {[%emt 0:01:53]} 11. Re1 {[%emt 0:00:46]} Re8 {[%emt 0:05:06]} 12. Nf1 {[%emt 0:02:01]} h6 {[%emt 0:13:04]} 13. Ng3 {[%emt 0:02:58]} Bg6 {[%emt 0:00:10]} 14. Nh2 {[%emt 0:03:06]} d5 {[%emt 0:06:31]} 15. Qf3 {[%emt 0:00:56]} dxe4 {[%emt 0:00:09]} 16. dxe4 {[%emt 0:00:32]} Nh7 {[%emt 0:08:27]} 17. Qg4 {[%emt 0:21:47]} Qf6 {[%emt 0:05:44]} 18. Rf1 {[%emt 0:01:02]} Nf8 {[%emt 0:06:06]} 19. Nf3 {[%emt 0:03:41]} Ne6 {[%emt 0:01:28]} 20. Nh4 {[%emt 0:01:12]} Rad8 {[%emt 0:10:00]} 21. Be3 {[%emt 0:14:54]} Kh7 {[%emt 0:08:37]} 22. Bd5 {[%emt 0:02:33]} Bb6 {[%emt 0:06:13]} 23. Rad1 {[%emt 0:01:05]} Rd6 {[%emt 0:01:53]} 24. Nhf5 {[%emt 0:01:07]} Rdd8 {[%emt 0:00:36]} 25. h4 {[%emt 0:01:36]} Nf4 {[%emt 0:02:31]} 26. Bxf4 {[%emt 0:11:13]} exf4 {[%emt 0:00:02]} 27. Qxf4 {[%emt 0:04:19]} Qxc3 {[%emt 0:00:15]} 28. h5 {[%emt 0:07:09]} Bxf5 {[%emt 0:01:05]} 29. Qxf5+ {[%emt 0:00:05]} Kh8 {[%emt 0:00:13]} 30. Ne2 {[%emt 0:06:19]} Qxb4 {[%emt 0:03:34]} 31. Nf4 {[%emt 0:01:31]} Ne5 {[%emt 0:02:32]} 32. Bxf7 {[%emt 0:01:14]} Nxf7 {[%emt 0:00:55]} 33. Qxf7 {[%emt 0:00:12]} Qxe4 {[%emt 0:03:46]} 34. Rxd8 {[%emt 0:03:43]} Rxd8 {[%emt 0:00:07]} 35. Ne6 {[%emt 0:01:55]} Rg8 {[%emt 0:01:39]} 36. Rd1 {[%emt 0:01:11]} Qe2 {[%emt 0:00:33]} 37. Rf1 {[%emt 0:00:57]} Qxa2 {[%emt 0:00:20]} 38. Qf5 {[%emt 0:00:23]} Qa5 {[%emt 0:01:21]} 39. Qg6 {[%emt 0:00:21]} Qe5 {[%emt 0:01:15]} 40. Qg4 {[%emt 0:01:31]} Qf6 {[%emt 0:00:45]} 41. Nf4 {[%emt 0:30:09]} Kh7 {[%emt 0:02:58]} 42. Ng6 {[%emt 0:00:00]} Re8 {[%emt 0:03:17]} 43. g3 {[%emt 0:00:00]} Re1 {[%emt 0:03:01]} 44. Nf4 {[%emt 0:00:00]} Qe5 {[%emt 0:07:39]} 45. Qg6+ {[%emt 0:00:00]} Kg8 {[%emt 0:00:11]} 46. Qc2 {[%emt 0:00:00]} Rxf1+ {[%emt 0:00:59]} 47. Kxf1 {[%emt 0:00:00]} Qc5 {[%emt 0:02:25]} 48. Qb3+ {[%emt 0:00:00]} Kh8 {[%emt 0:00:28]} 49. Ng6+ {[%emt 0:00:00]} Kh7 {[%emt 0:00:07]} 50. Qf7 {[%emt 0:00:00]} Qb5+ {[%emt 0:02:06]} 51. Kg2 {[%emt 0:00:00]} Qc6+ {[%emt 0:01:06]} 52. Kg1 {[%emt 0:00:00]} Bc5 {[%emt 0:01:37]} 53. Qf5 {[%emt 0:00:00]} Qd6 {[%emt 0:05:18]} 54. Ne7+ {[%emt 0:00:00]} 1-0

[Event "27th OIBM 2024"]
[Site "Gmund am Tegernsee"]
[Date "2024.10.27"]
[Round "2.35"]
[White "Morchiashvili, Bachana"]
[Black "Jetzl, Julian"]
[Result "1-0"]
[ECO "D80"]
[WhiteElo "2257"]
[BlackElo "2118"]
[Annotator "RC"]
[PlyCount "95"]
[EventDate "2024.09.16"]
[EventType "swiss"]
[EventCountry "GER"]
[SourceTitle "playchess.com"]
[Source "ChessBase"]
[SourceQuality "1"]
[TimeControl "40/5400+30:1800+30"]

1. d4 {[%emt 0:02:53]} Nf6 {[%emt 0:00:08]} 2. c4 {[%emt 0:00:09]} g6 {[%emt 0:00:09]} 3. Nc3 {[%emt 0:00:04]} d5 {[%emt 0:00:11]} 4. Bg5 {[%emt 0:00:06]} Bg7 {[%emt 0:00:43]} 5. Bxf6 {[%emt 0:00:19]} Bxf6 {[%emt 0:00:13]} 6. cxd5 {[%emt 0:00:01]} c6 {[%emt 0:00:38]} 7. Rc1 {[%emt 0:00:05]} O-O {[%emt 0:00:25]} 8. dxc6 {[%emt 0:00:07]} Qxd4 {[%emt 0:01:41]} 9. Qxd4 {[%emt 0:00:37]} Bxd4 {[%emt 0:00:07]} 10. cxb7 {[%emt 0:00:37]} Bxb7 {[%emt 0:01:28]} 11. Nf3 {[%emt 0:01:14]} Bf6 {[%emt 0:00:22]} 12. e3 {[%emt 0:00:06]} Rc8 {[%emt 0:10:51]} 13. Be2 {[%emt 0:02:35]} Ba6 {[%emt 0:21:49]} 14. Nd4 {[%emt 0:09:26]} Bb7 {[%emt 0:23:29]} 15. O-O {[%emt 0:04:42]} Nc6 {[%emt 0:00:23]} 16. Bf3 {[%emt 0:03:13]} Rab8 {[%emt 0:01:18]} 17. Bxc6 {[%emt 0:14:23]} Bxc6 {[%emt 0:04:03]} 18. b3 {[%emt 0:02:26]} Bxd4 {[%emt 0:05:50]} 19. exd4 {[%emt 0:00:03]} e6 {[%emt 0:00:16]} 20. Rfd1 {[%emt 0:04:27]} a5 {[%emt 0:01:14]} 21. f3 {[%emt 0:02:48]} a4 {[%emt 0:03:41]} 22. Nxa4 {[%emt 0:10:30]} Bxa4 {[%emt 0:00:15]} 23. Rxc8+ {[%emt 0:00:09]} Rxc8 {[%emt 0:00:07]} 24. bxa4 {[%emt 0:00:01]} Rc2 {[%emt 0:02:20]} 25. d5 {[%emt 0:00:28]} exd5 {[%emt 0:00:36]} 26. Rxd5 {[%emt 0:00:04]} Rxa2 {[%emt 0:00:08]} 27. Ra5 {[%emt 0:02:18]} Kf8 {[%emt 0:04:35]} 28. h4 {[%emt 0:00:33]} h5 {[%emt 0:05:00]} 29. Kh2 {[%emt 0:00:40]} Ke7 {[%emt 0:00:28]} 30. Kg3 {[%emt 0:00:08]} Kf6 {[%emt 0:01:16]} 31. Ra6+ {[%emt 0:00:21]} Kf5 {[%emt 0:02:03]} 32. Ra7 {[%emt 0:00:21]} Ke6 {[%emt 0:01:56]} 33. a5 {[%emt 0:00:05]} f6 {[%emt 0:01:33]} 34. a6 {[%emt 0:00:11]} Kf5 {[%emt 0:00:57]} 35. Ra8 {[%emt 0:00:45]} Ke5 {[%emt 0:02:31]} 36. a7 {[%emt 0:01:37]} Kf5 {[%emt 0:00:22]} 37. Kh2 {[%emt 0:02:30]} Ra1 {[%emt 0:01:35]} 38. g3 {[%emt 0:00:36]} Ra2+ {[%emt 0:00:31]} 39. Kg1 {[%emt 0:00:02]} Ra1+ {[%emt 0:03:15]} 40. Kf2 {[%emt 0:00:02]} Ra3 {[%emt 0:00:39]} 41. Ke2 {[%emt 0:30:18]} Ra2+ {[%emt 0:30:19]} 42. Kd3 {[%emt 0:00:09]} Ra4 {[%emt 0:00:00]} 43. Kc3 {[%emt 0:00:00]} Ra1 {[%emt 0:00:00]} 44. Kc4 {[%emt 0:00:00]} Rc1+ {[%emt 0:00:00]} 45. Kd5 {[%emt 0:00:00]} Rd1+ {[%emt 0:00:00]} 46. Kc5 {[%emt 0:00:00]} Ra1 {[%emt 0:00:00]} 47. Kd6 {[%emt 0:00:00]} Ra3 {[%emt 0:00:00]} 48. Rc8 {[%emt 0:00:00]} 1-0

[Event "27th OIBM 2024"]
[Site "Gmund am Tegernsee"]
[Date "2024.10.27"]
[Round "2.36"]
[White "Weber, Samuel"]
[Black "Wohlfart, Paulus"]
[Result "1-0"]
[ECO "B27"]
[WhiteElo "2256"]
[BlackElo "2116"]
[Annotator "RC"]
[PlyCount "95"]
[EventDate "2024.09.16"]
[EventType "swiss"]
[EventCountry "GER"]
[SourceTitle "playchess.com"]
[Source "ChessBase"]
[SourceQuality "1"]
[TimeControl "40/5400+30:1800+30"]

1. e4 {[%emt 0:00:10]} c5 {[%emt 0:00:28]} 2. Nf3 {[%emt 0:00:46]} g6 {[%emt 0:00:34]} 3. d4 {[%emt 0:01:25]} cxd4 {[%emt 0:00:19]} 4. Qxd4 {[%emt 0:00:10]} Nf6 {[%emt 0:00:48]} 5. Qa4 {[%emt 0:00:09]} Nc6 {[%emt 0:04:52]} 6. Nc3 {[%emt 0:00:40]} d6 {[%emt 0:01:15]} 7. e5 {[%emt 0:00:34]} dxe5 {[%emt 0:00:56]} 8. Nxe5 {[%emt 0:00:15]} Bd7 {[%emt 0:00:59]} 9. Nxd7 {[%emt 0:00:40]} Nxd7 {[%emt 0:00:42]} 10. Be3 {[%emt 0:07:37]} Bg7 {[%emt 0:06:28]} 11. O-O-O {[%emt 0:05:03]} O-O {[%emt 0:06:37]} 12. h4 {[%emt 0:03:41]} Qc8 {[%emt 0:07:23]} 13. h5 {[%emt 0:06:14]} Nf6 {[%emt 0:02:28]} 14. hxg6 {[%emt 0:05:48]} hxg6 {[%emt 0:00:52]} 15. Be2 {[%emt 0:02:22]} Rd8 {[%emt 0:13:53]} 16. Qh4 {[%emt 0:05:20]} Rxd1+ {[%emt 0:01:06]} 17. Bxd1 {[%emt 0:00:07]} Qe6 {[%emt 0:17:37]} 18. Bh6 {[%emt 0:05:47]} Bh8 {[%emt 0:00:53]} 19. Bf3 {[%emt 0:10:24]} Rd8 {[%emt 0:05:54]} 20. Bf8 {[%emt 0:11:04]} Kxf8 {[%emt 0:00:34]} 21. Qxh8+ {[%emt 0:00:09]} Ng8 {[%emt 0:00:04]} 22. Qh2 {[%emt 0:07:29]} Qd6 {[%emt 0:01:55]} 23. Qh4 {[%emt 0:00:32]} Qf6 {[%emt 0:04:53]} 24. Qxf6 {[%emt 0:03:00]} Nxf6 {[%emt 0:00:16]} 25. Bxc6 {[%emt 0:00:04]} bxc6 {[%emt 0:00:08]} 26. Rh8+ {[%emt 0:00:02]} Ng8 {[%emt 0:00:11]} 27. Rh4 {[%emt 0:00:07]} Nf6 {[%emt 0:03:04]} 28. Rc4 {[%emt 0:01:13]} Rd6 {[%emt 0:00:48]} 29. Ne2 {[%emt 0:01:03]} e5 {[%emt 0:01:31]} 30. Ra4 {[%emt 0:00:32]} Rd7 {[%emt 0:00:15]} 31. Ra6 {[%emt 0:00:10]} Rc7 {[%emt 0:00:06]} 32. Kd2 {[%emt 0:01:43]} Nd5 {[%emt 0:01:13]} 33. Ra4 {[%emt 0:04:53]} Ke7 {[%emt 0:00:51]} 34. Re4 {[%emt 0:00:51]} Kd6 {[%emt 0:00:38]} 35. Nc1 {[%emt 0:00:45]} Re7 {[%emt 0:02:41]} 36. c4 {[%emt 0:02:38]} Nf4 {[%emt 0:01:46]} 37. g3 {[%emt 0:01:00]} f5 {[%emt 0:03:56]} 38. Re1 {[%emt 0:01:00]} Ne6 {[%emt 0:00:07]} 39. Rh1 {[%emt 0:00:40]} e4 {[%emt 0:00:42]} 40. Rh6 {[%emt 0:02:23]} Rg7 {[%emt 0:00:51]} 41. Ke3 {[%emt 0:33:12]} Ke5 {[%emt 0:31:32]} 42. f3 {[%emt 0:02:39]} exf3 {[%emt 0:06:28]} 43. Nd3+ {[%emt 0:01:02]} Kf6 {[%emt 0:00:05]} 44. Kxf3 {[%emt 0:02:07]} Ng5+ {[%emt 0:00:17]} 45. Kf2 {[%emt 0:01:16]} Ne6 {[%emt 0:00:30]} 46. b3 {[%emt 0:00:30]} Ng5 {[%emt 0:00:00]} 47. Rxg6+ {[%emt 0:00:30]} Kf7 {[%emt 0:01:00]} 48. Rxc6 {[%emt 0:00:30]} 1-0

[Event "27th OIBM 2024"]
[Site "Gmund am Tegernsee"]
[Date "2024.10.27"]
[Round "2.37"]
[White "Smits, Mark"]
[Black "Boehmer, Christian"]
[Result "1-0"]
[ECO "B03"]
[WhiteElo "2251"]
[BlackElo "2112"]
[Annotator "RC"]
[PlyCount "75"]
[EventDate "2024.09.16"]
[EventType "swiss"]
[EventCountry "GER"]
[SourceTitle "playchess.com"]
[Source "ChessBase"]
[SourceQuality "1"]
[TimeControl "40/5400+30:1800+30"]

1. e4 {[%emt 0:00:04]} Nf6 {[%emt 0:00:26]} 2. e5 {[%emt 0:01:34]} Nd5 {[%emt 0:00:09]} 3. d4 {[%emt 0:00:09]} d6 {[%emt 0:00:08]} 4. c4 {[%emt 0:00:15]} Nb6 {[%emt 0:00:08]} 5. exd6 {[%emt 0:00:29]} exd6 {[%emt 0:00:09]} 6. Nc3 {[%emt 0:02:20]} Be7 {[%emt 0:00:46]} 7. Be3 {[%emt 0:00:20]} Nc6 {[%emt 0:01:00]} 8. Qf3 {[%emt 0:04:40]} Be6 {[%emt 0:17:43]} 9. b3 {[%emt 0:01:30]} d5 {[%emt 0:01:49]} 10. c5 {[%emt 0:00:23]} Nc8 {[%emt 0:00:05]} 11. Nh3 {[%emt 0:04:49]} Bf6 {[%emt 0:08:06]} 12. Rd1 {[%emt 0:02:02]} Qd7 {[%emt 0:01:25]} 13. Be2 {[%emt 0:05:50]} N8e7 {[%emt 0:12:10]} 14. Nf4 {[%emt 0:01:36]} Rd8 {[%emt 0:05:33]} 15. Nh5 {[%emt 0:02:48]} Ng8 {[%emt 0:00:21]} 16. g4 {[%emt 0:07:09]} h6 {[%emt 0:11:11]} 17. h4 {[%emt 0:04:27]} Kf8 {[%emt 0:01:50]} 18. g5 {[%emt 0:04:15]} Be7 {[%emt 0:02:14]} 19. Nf4 {[%emt 0:01:09]} Ke8 {[%emt 0:00:44]} 20. Rg1 {[%emt 0:01:42]} Bf8 {[%emt 0:03:31]} 21. Bd3 {[%emt 0:05:33]} Nge7 {[%emt 0:01:05]} 22. g6 {[%emt 0:03:12]} f6 {[%emt 0:03:45]} 23. Nxe6 {[%emt 0:02:09]} Qxe6 {[%emt 0:00:12]} 24. Kd2 {[%emt 0:00:26]} Rd7 {[%emt 0:06:51]} 25. Rge1 {[%emt 0:02:20]} Kd8 {[%emt 0:00:25]} 26. Ne2 {[%emt 0:06:31]} Nb4 {[%emt 0:04:53]} 27. Nf4 {[%emt 0:03:59]} Qc6 {[%emt 0:02:19]} 28. Bf1 {[%emt 0:00:35]} b5 {[%emt 0:04:59]} 29. a3 {[%emt 0:01:19]} Na6 {[%emt 0:00:05]} 30. b4 {[%emt 0:00:10]} Nb8 {[%emt 0:00:40]} 31. a4 {[%emt 0:01:17]} a6 {[%emt 0:00:26]} 32. axb5 {[%emt 0:01:16]} axb5 {[%emt 0:00:10]} 33. Bh3 {[%emt 0:01:20]} f5 {[%emt 0:00:28]} 34. Ra1 {[%emt 0:02:18]} Qf6 {[%emt 0:01:11]} 35. Ra8 {[%emt 0:01:03]} Kc8 {[%emt 0:00:18]} 36. h5 {[%emt 0:02:25]} Kb7 {[%emt 0:01:07]} 37. Rea1 {[%emt 0:00:18]} Nbc6 {[%emt 0:01:19]} 38. Qe2 {[%emt 0:05:23]} 1-0